Workbook

Sheet 2016
B1: Consolidación año 2016
B2: MOS Expert CPC Martín Cruz • +51 998 401 784 | Excel No Convencional
B6: =lista01.01 -> Rubros | C6: Enero | D6: Febrero | E6: Marzo | F6: Abril | G6: Mayo | H6: Junio | I6: Julio | J6: Agosto | K6: Septiembre | L6: Octubre | M6: Noviembre | N6: Diciembre
B7: 01.01. Marca Nacional | C7: 65,796.27 | D7: 22,522.19 | E7: 44,673.54 | F7: 62,837.26 | G7: 7,528.74 | H7: 66,682.37 | I7: 49,432.00 | J7: 19,873.72 | K7: 20,751.48 | L7: 9,974.43 | M7: 57,126.35 | N7: 12,628.78
B8: 01.02. Marca en el Extrajero | C8: 44,037.91 | D8: 37,443.62 | F8: 64,378.55 | G8: 67,607.96 | H8: 62,646.36 | I8: 65,191.70 | J8: 35,195.81 | K8: 60,090.36 | M8: 46,239.35 | N8: 9,653.10
B9: 01.03. Renovaciones | C9: 2,850.18 | D9: 47,106.71 | E9: 10,440.40 | F9: 69,101.19 | G9: 36,375.34 | H9: 41,901.51 | J9: 33,645.14 | K9: 67,145.51 | M9: 16,582.73 | N9: 38,726.25
B10: 01.04. Busqueda y Vigilancia | C10: 7,289.91 | D10: 51,613.54 | E10: 13,258.04 | F10: 4,208.38 | G10: 21,107.31 | I10: 53,166.76 | J10: 33,079.28 | K10: 51,183.79 | M10: 59,573.52 | N10: 50,164.85
B11: 01.05. Dominio | C11: 37,649.55 | D11: 53,271.43 | F11: 38,870.20 | G11: 35,864.67 | H11: 40,757.41 | I11: 14,652.82 | J11: 48,686.91 | K11: 24,289.90 | L11: 41,521.87 | M11: 39,862.38 | N11: 11,765.95
B12: 01.06. Otros Marca | C12: 1,650.47 | D12: 59,512.89 | E12: 17,508.23 | F12: 23,364.02 | G12: 13,484.15 | H12: 68,308.03 | I12: 68,096.95 | J12: 29,661.20 | M12: 66,560.34 | N12: 16,392.04
B13: 02.01. Patente Nacional | C13: 43,361.16 | D13: 25,687.20 | E13: 41,810.87 | F13: 40,906.72 | G13: 9,100.25 | H13: 43,314.71 | I13: 44,249.65 | J13: 46,977.21 | K13: 48,002.59 | M13: 38,093.15 | N13: 8,628.03
B14: 02.02. PCT | C14: 6,960.43 | D14: 6,269.61 | E14: 19,983.22 | F14: 11,646.96 | G14: 43,955.60 | H14: 5,864.72 | I14: 6,811.44 | J14: 24,265.71 | K14: 42,757.40 | L14: 30,770.57 | M14: 11,593.76 | N14: 34,052.13
B15: 02.03. Diseño Industrial | C15: 17,084.37 | D15: 20,355.27 | E15: 43,601.77 | F15: 35,816.55 | G15: 25,476.73 | H15: 46,832.54 | I15: 18,040.43 | J15: 7,185.75 | K15: 37,922.12 | L15: 10,698.12 | M15: 28,361.31 | N15: 9,733.18
B16: 02.04. Variedad Vegetal | C16: 9,006.41 | D16: 25,555.94 | F16: 43,976.25 | G16: 18,926.96 | I16: 33,813.90 | J16: 24,167.63 | M16: 48,291.07 | N16: 46,111.40
B17: 02.05. Anualidad | C17: 45,576.59 | D17: 25,705.17 | E17: 26,981.14 | F17: 24,206.81 | G17: 35,088.31 | H17: 7,214.99 | I17: 38,364.09 | J17: 16,722.21 | K17: 36,797.97 | L17: 27,177.24 | M17: 41,742.94 | N17: 20,443.00
B18: 02.06. Busqueda y Vigilancia | C18: 48,077.40 | D18: 13,872.47 | E18: 9,337.37 | F18: 33,535.67 | H18: 42,823.54 | I18: 6,953.57 | J18: 11,971.59 | K18: 25,324.56 | L18: 26,527.87 | M18: 42,883.90 | N18: 38,893.26
B19: 02.07. Otros Patentes | C19: 19,455.34 | D19: 18,032.21 | F19: 7,519.81 | G19: 25,758.19 | H19: 9,799.06 | I19: 40,737.80 | J19: 24,240.09 | L19: 5,133.76 | M19: 15,785.02 | N19: 14,198.75
B20: 03.01. Asesoria en Propiedad Intelectual | C20: 7,112.45 | D20: 3,184.05 | F20: 5,403.39 | G20: 6,875.51 | H20: 6,726.28 | I20: 7,762.07 | J20: 7,681.14 | K20: 3,274.90 | L20: 2,908.32 | M20: 5,629.86 | N20: 3,638.34
B21: 03.02. Inteligencia Tecnologica | C21: 5,155.34 | D21: 1,356.56 | E21: 2,115.03 | F21: 4,297.70 | G21: 6,643.33 | H21: 6,755.14 | I21: 7,930.64 | J21: 1,549.21 | K21: 4,064.35 | L21: 7,329.00 | M21: 5,216.96 | N21: 7,071.80
B22: 03.03. Otros Servicios | C22: 3,676.06 | E22: 6,081.95 | F22: 1,019.20 | G22: 6,002.27 | H22: 4,724.26 | J22: 3,848.87 | K22: 5,153.46 | L22: 6,091.77 | M22: 111.47 | N22: 7,504.72
B23: TOTAL GENERAL | C23: 364,739.84 | D23: 411,488.86 | E23: 235,791.56 | F23: 471,088.66 | G23: 359,795.32 | H23: 454,350.92 | I23: 455,203.82 | J23: 368,751.47 | K23: 426,758.39 | L23: 168,132.95 | M23: 523,654.11 | N23: 329,605.58

Sheet 2017
B1: Consolidación año 2017
B2: MOS Expert CPC Martín Cruz • +51 998 401 784 | Excel No Convencional
B5: =lista01.02 -> Rubros | C5: Enero | D5: Febrero | E5: Marzo | F5: Abril | G5: Mayo | H5: Junio | I5: Julio | J5: Agosto | K5: Septiembre | L5: Octubre | M5: Noviembre | N5: Diciembre
B6: 01.01. Marca Nacional | C6: 41,207.55 | D6: 27,784.48 | F6: 24,688.95 | G6: 76,476.27 | H6: 38,295.81 | I6: 76,509.23 | J6: 43,967.94 | K6: 74,944.34 | L6: 29,358.54 | M6: 26,742.41 | N6: 27,388.56
B7: 01.02. Marca en el Extrajero | C7: 73,380.44 | D7: 43,861.99 | E7: 69,323.46 | G7: 81,580.65 | I7: 37,889.14 | K7: 43,665.50 | L7: 10,025.58 | M7: 41,422.18
B8: 01.03. Renovaciones | C8: 83,570.18 | D8: 17,386.20 | E8: 56,775.21 | F8: 72,389.63 | G8: 87,518.47 | H8: 25,959.59 | I8: 64,804.29 | J8: 39,487.35 | K8: 14,933.23 | L8: 62,995.41 | M8: 59,123.13 | N8: 87,303.77
B9: 01.04. Busqueda y Vigilancia | C9: 88,950.20 | D9: 75,127.86 | F9: 18,501.00 | G9: 57,231.91 | H9: 5,639.91 | I9: 19,620.62 | J9: 43,360.29 | K9: 51,473.23 | M9: 87,735.07 | N9: 85,363.03
B10: 01.05. Dominio | C10: 29,283.51 | D10: 80,920.95 | E10: 2,526.68 | F10: 70,231.59 | G10: 32,620.35 | I10: 62,884.88 | J10: 19,455.08 | K10: 23,514.43 | L10: 6,093.47 | N10: 4,940.90
B11: 01.06. Otros Marca | C11: 13,475.62 | D11: 31,768.56 | E11: 58,221.39 | F11: 56,722.93 | G11: 31,991.54 | H11: 62,044.49 | I11: 62,897.46 | J11: 63,338.31 | K11: 43,537.95 | L11: 58,365.14 | M11: 88,332.18 | N11: 64,880.12
B12: 02.01. Patente Nacional | C12: 55,809.66 | D12: 34,019.35 | E12: 86,245.55 | F12: 80,292.24 | G12: 18,699.56 | H12: 28,631.92 | I12: 62,821.63 | J12: 60,174.98 | K12: 84,568.91 | L12: 44,510.43 | M12: 87,468.36
B13: 02.02. PCT | C13: 77,029.99 | D13: 29,976.27 | F13: 33,758.57 | H13: 81,985.82 | I13: 45,454.80 | J13: 54,935.89 | K13: 34,761.27 | L13: 37,992.91 | M13: 84,760.57 | N13: 72,972.21
B14: 02.03. Diseño Industrial | D14: 42,950.57 | E14: 75,904.36 | F14: 70,041.87 | G14: 55,549.19 | H14: 49,665.47 | I14: 26,478.23 | J14: 46,474.01 | K14: 20,662.97 | L14: 80,388.26 | M14: 36,145.62 | N14: 70,304.26
B15: 02.04. Variedad Vegetal | C15: 47,227.99 | D15: 67,831.65 | E15: 21,079.74 | F15: 54,761.48 | G15: 31,835.69 | H15: 88,405.93 | I15: 63,422.77 | J15: 60,690.59 | K15: 40,755.37 | M15: 87,638.15
B16: 02.05. Anualidad | C16: 27,353.52 | D16: 44,888.53 | E16: 59,649.87 | F16: 53,021.58 | G16: 79,642.51 | I16: 41,102.31 | J16: 50,653.25 | K16: 76,020.96 | L16: 63,308.39 | M16: 73,755.08 | N16: 61,538.80
B17: 02.06. Busqueda y Vigilancia | D17: 84,820.18 | E17: 81,532.34 | F17: 76,825.88 | G17: 43,013.85 | H17: 42,801.07 | I17: 43,188.55 | J17: 39,246.20 | K17: 47,040.17 | L17: 53,530.92 | M17: 44,406.85 | N17: 69,873.58
B18: 02.07. Otros Patentes | C18: 60,211.43 | E18: 30,466.98 | F18: 31,890.74 | G18: 30,667.28 | H18: 13,275.25 | I18: 88,533.25 | J18: 23,794.87 | K18: 71,878.56 | L18: 71,473.30 | M18: 23,440.53
B19: 03.01. Asesoria en Propiedad Intelectual | C19: 1,078.39 | D19: 3,547.19 | E19: 4,211.04 | F19: 404.44 | G19: 2,890.67 | H19: 2,017.32 | I19: 4,723.62 | J19: 1,482.60 | K19: 1,851.90 | L19: 1,386.22 | M19: 636.69 | N19: 12,054.43
B20: 03.02. Inteligencia Tecnologica | C20: 376.81 | D20: 4,956.36 | E20: 4,772.61 | F20: 4,359.98 | G20: 1,084.97 | H20: 1,731.02 | I20: 4,534.77 | J20: 645.98 | K20: 1,354.02 | L20: 3,653.93 | M20: 1,596.20 | N20: 0.00
B21: 03.03. Otros Servicios | C21: 715.11 | E21: 1,623.70 | F21: 3,635.24 | G21: 1,160.48 | H21: 1,710.68 | I21: 4,020.03 | J21: 2,276.65 | K21: 3,636.95 | M21: 3,355.82 | N21: 14,454.93
B22: Total general | C22: 599,670.40 | D22: 589,840.14 | E22: 552,332.93 | F22: 651,526.12 | G22: 631,963.39 | H22: 442,164.28 | I22: 708,885.58 | J22: 549,983.99 | K22: 634,599.76 | L22: 523,082.50 | M22: 746,558.84 | N22: 571,074.59

Sheet DO_DATA (hidden)
B6: Rubros | C6: Enero | D6: Febrero | E6: Marzo | F6: Abril | G6: Mayo | H6: Junio | I6: Julio | J6: Agosto | K6: Septiembre | L6: Octubre | M6: Noviembre | N6: Diciembre
B7: 01.01. Marca Nacional | C7: =IF(RAND()<0.1,"",ROUND(RANDBETWEEN(1000,70000)+RAND(),2)) -> 65,796.27 | D7: 22,522.19 | E7: 44,673.54 | F7: 62,837.26 | G7: 7,528.74 | H7: 66,682.37 | I7: 49,432.00 | J7: 19,873.72 | K7: 20,751.48 | L7: 9,974.43 | M7: 57,126.35 | N7: 12,628.78
B8: 01.02. Marca en el Extrajero | C8: 44,037.91 | D8: 37,443.62 | F8: 64,378.55 | G8: 67,607.96 | H8: 62,646.36 | I8: 65,191.70 | J8: 35,195.81 | K8: 60,090.36 | M8: 46,239.35 | N8: 9,653.10
B9: 01.03. Renovaciones | C9: 2,850.18 | D9: 47,106.71 | E9: 10,440.40 | F9: 69,101.19 | G9: 36,375.34 | H9: 41,901.51 | J9: 33,645.14 | K9: 67,145.51 | M9: 16,582.73 | N9: 38,726.25
B10: 01.04. Busqueda y Vigilancia | C10: 7,289.91 | D10: 51,613.54 | E10: 13,258.04 | F10: 4,208.38 | G10: 21,107.31 | I10: 53,166.76 | J10: 33,079.28 | K10: 51,183.79 | M10: 59,573.52 | N10: 50,164.85
B11: 01.05. Dominio | C11: 37,649.55 | D11: 53,271.43 | F11: 38,870.20 | G11: 35,864.67 | H11: 40,757.41 | I11: 14,652.82 | J11: 48,686.91 | K11: 24,289.90 | L11: 41,521.87 | M11: 39,862.38 | N11: 11,765.95
B12: 01.06. Otros Marca | C12: 1,650.47 | D12: 59,512.89 | E12: 17,508.23 | F12: 23,364.02 | G12: 13,484.15 | H12: 68,308.03 | I12: 68,096.95 | J12: 29,661.20 | M12: 66,560.34 | N12: 16,392.04
B13: 02.01. Patente Nacional | C13: =IF(RAND()<0.1,"",ROUND(RANDBETWEEN(5000,50000)+RAND(),2)) -> 43,361.16 | D13: 25,687.20 | E13: 41,810.87 | F13: 40,906.72 | G13: 9,100.25 | H13: 43,314.71 | I13: 44,249.65 | J13: 46,977.21 | K13: 48,002.59 | M13: 38,093.15 | N13: 8,628.03
B14: 02.02. PCT | C14: 6,960.43 | D14: 6,269.61 | E14: 19,983.22 | F14: 11,646.96 | G14: 43,955.60 | H14: 5,864.72 | I14: 6,811.44 | J14: 24,265.71 | K14: 42,757.40 | L14: 30,770.57 | M14: 11,593.76 | N14: 34,052.13
B15: 02.03. Diseño Industrial | C15: 17,084.37 | D15: 20,355.27 | E15: 43,601.77 | F15: 35,816.55 | G15: 25,476.73 | H15: 46,832.54 | I15: 18,040.43 | J15: 7,185.75 | K15: 37,922.12 | L15: 10,698.12 | M15: 28,361.31 | N15: 9,733.18
B16: 02.04. Variedad Vegetal | C16: 9,006.41 | D16: 25,555.94 | F16: 43,976.25 | G16: 18,926.96 | I16: 33,813.90 | J16: 24,167.63 | M16: 48,291.07 | N16: 46,111.40
B17: 02.05. Anualidad | C17: 45,576.59 | D17: 25,705.17 | E17: 26,981.14 | F17: 24,206.81 | G17: 35,088.31 | H17: 7,214.99 | I17: 38,364.09 | J17: 16,722.21 | K17: 36,797.97 | L17: 27,177.24 | M17: 41,742.94 | N17: 20,443.00
B18: 02.06. Busqueda y Vigilancia | C18: 48,077.40 | D18: 13,872.47 | E18: 9,337.37 | F18: 33,535.67 | H18: 42,823.54 | I18: 6,953.57 | J18: 11,971.59 | K18: 25,324.56 | L18: 26,527.87 | M18: 42,883.90 | N18: 38,893.26
B19: 02.07. Otros Patentes | C19: 19,455.34 | D19: 18,032.21 | F19: 7,519.81 | G19: 25,758.19 | H19: 9,799.06 | I19: 40,737.80 | J19: 24,240.09 | L19: 5,133.76 | M19: 15,785.02 | N19: 14,198.75
B20: 03.01. Asesoria en Propiedad Intelectual | C20: =IF(RAND()<0.1,"",ROUND(RANDBETWEEN(100,8000)+RAND(),2)) -> 7,112.45 | D20: 3,184.05 | F20: 5,403.39 | G20: 6,875.51 | H20: 6,726.28 | I20: 7,762.07 | J20: 7,681.14 | K20: 3,274.90 | L20: 2,908.32 | M20: 5,629.86 | N20: 3,638.34
B21: 03.02. Inteligencia Tecnologica | C21: 5,155.34 | D21: 1,356.56 | E21: 2,115.03 | F21: 4,297.70 | G21: 6,643.33 | H21: 6,755.14 | I21: 7,930.64 | J21: 1,549.21 | K21: 4,064.35 | L21: 7,329.00 | M21: 5,216.96 | N21: 7,071.80
B22: 03.03. Otros Servicios | C22: 3,676.06 | E22: 6,081.95 | F22: 1,019.20 | G22: 6,002.27 | H22: 4,724.26 | J22: 3,848.87 | K22: 5,153.46 | L22: 6,091.77 | M22: 111.47 | N22: 7,504.72
B23: TOTAL GENERAL | C23: =SUBTOTAL(9,C7:C22) -> 364,739.84 | D23: 411,488.86 | E23: 235,791.56 | F23: 471,088.66 | G23: 359,795.32 | H23: 454,350.92 | I23: 455,203.82 | J23: 368,751.47 | K23: 426,758.39 | L23: 168,132.95 | M23: 523,654.11 | N23: 329,605.58
B29: Rubros | C29: Enero | D29: Febrero | E29: Marzo | F29: Abril | G29: Mayo | H29: Junio | I29: Julio | J29: Agosto | K29: Septiembre | L29: Octubre | M29: Noviembre | N29: Diciembre
B30: 01.01. Marca Nacional | C30: =IF(RAND()<0.1,"",ROUND(RANDBETWEEN(1000,90000)+RAND(),2)) -> 41,207.55 | D30: 27,784.48 | F30: 24,688.95 | G30: 76,476.27 | H30: 38,295.81 | I30: 76,509.23 | J30: 43,967.94 | K30: 74,944.34 | L30: 29,358.54 | M30: 26,742.41 | N30: 27,388.56
B31: 01.02. Marca en el Extrajero | C31: 73,380.44 | D31: 43,861.99 | E31: 69,323.46 | G31: 81,580.65 | I31: 37,889.14 | K31: 43,665.50 | L31: 10,025.58 | M31: 41,422.18
B32: 01.03. Renovaciones | C32: 83,570.18 | D32: 17,386.20 | E32: 56,775.21 | F32: 72,389.63 | G32: 87,518.47 | H32: 25,959.59 | I32: 64,804.29 | J32: 39,487.35 | K32: 14,933.23 | L32: 62,995.41 | M32: 59,123.13 | N32: 87,303.77
B33: 01.04. Busqueda y Vigilancia | C33: 88,950.20 | D33: 75,127.86 | F33: 18,501.00 | G33: 57,231.91 | H33: 5,639.91 | I33: 19,620.62 | J33: 43,360.29 | K33: 51,473.23 | M33: 87,735.07 | N33: 85,363.03
B34: 01.05. Dominio | C34: 29,283.51 | D34: 80,920.95 | E34: 2,526.68 | F34: 70,231.59 | G34: 32,620.35 | I34: 62,884.88 | J34: 19,455.08 | K34: 23,514.43 | L34: 6,093.47 | N34: 4,940.90
B35: 01.06. Otros Marca | C35: 13,475.62 | D35: 31,768.56 | E35: 58,221.39 | F35: 56,722.93 | G35: 31,991.54 | H35: 62,044.49 | I35: 62,897.46 | J35: 63,338.31 | K35: 43,537.95 | L35: 58,365.14 | M35: 88,332.18 | N35: 64,880.12
B36: 02.01. Patente Nacional | C36: =IF(RAND()<0.1,"",ROUND(RANDBETWEEN(10000,90000)+RAND(),2)) -> 55,809.66 | D36: 34,019.35 | E36: 86,245.55 | F36: 80,292.24 | G36: 18,699.56 | H36: 28,631.92 | I36: 62,821.63 | J36: 60,174.98 | K36: 84,568.91 | L36: 44,510.43 | M36: 87,468.36
B37: 02.02. PCT | C37: 77,029.99 | D37: 29,976.27 | F37: 33,758.57 | H37: 81,985.82 | I37: 45,454.80 | J37: 54,935.89 | K37: 34,761.27 | L37: 37,992.91 | M37: 84,760.57 | N37: 72,972.21
B38: 02.03. Diseño Industrial | D38: 42,950.57 | E38: 75,904.36 | F38: 70,041.87 | G38: 55,549.19 | H38: 49,665.47 | I38: 26,478.23 | J38: 46,474.01 | K38: 20,662.97 | L38: 80,388.26 | M38: 36,145.62 | N38: 70,304.26
B39: 02.04. Variedad Vegetal | C39: 47,227.99 | D39: 67,831.65 | E39: 21,079.74 | F39: 54,761.48 | G39: 31,835.69 | H39: 88,405.93 | I39: 63,422.77 | J39: 60,690.59 | K39: 40,755.37 | M39: 87,638.15
B40: 02.05. Anualidad | C40: 27,353.52 | D40: 44,888.53 | E40: 59,649.87 | F40: 53,021.58 | G40: 79,642.51 | I40: 41,102.31 | J40: 50,653.25 | K40: 76,020.96 | L40: 63,308.39 | M40: 73,755.08 | N40: 61,538.80
B41: 02.06. Busqueda y Vigilancia | D41: 84,820.18 | E41: 81,532.34 | F41: 76,825.88 | G41: 43,013.85 | H41: 42,801.07 | I41: 43,188.55 | J41: 39,246.20 | K41: 47,040.17 | L41: 53,530.92 | M41: 44,406.85 | N41: 69,873.58
B42: 02.07. Otros Patentes | C42: 60,211.43 | E42: 30,466.98 | F42: 31,890.74 | G42: 30,667.28 | H42: 13,275.25 | I42: 88,533.25 | J42: 23,794.87 | K42: 71,878.56 | L42: 71,473.30 | M42: 23,440.53
B43: 03.01. Asesoria en Propiedad Intelectual | C43: =IF(RAND()<0.1,"",ROUND(RANDBETWEEN(100,5000)+RAND(),2)) -> 1,078.39 | D43: 3,547.19 | E43: 4,211.04 | F43: 404.44 | G43: 2,890.67 | H43: 2,017.32 | I43: 4,723.62 | J43: 1,482.60 | K43: 1,851.90 | L43: 1,386.22 | M43: 636.69 | N43: 12,054.43
B44: 03.02. Inteligencia Tecnologica | C44: 376.81 | D44: 4,956.36 | E44: 4,772.61 | F44: 4,359.98 | G44: 1,084.97 | H44: 1,731.02 | I44: 4,534.77 | J44: 645.98 | K44: 1,354.02 | L44: 3,653.93 | M44: 1,596.20
B45: 03.03. Otros Servicios | C45: 715.11 | E45: 1,623.70 | F45: 3,635.24 | G45: 1,160.48 | H45: 1,710.68 | I45: 4,020.03 | J45: 2,276.65 | K45: 3,636.95 | M45: 3,355.82 | N45: 14,454.93
B46: Total general | C46: =SUBTOTAL(9,C30:C45) -> 599,670.40 | D46: 589,840.14 | E46: 552,332.93 | F46: 651,526.12 | G46: 631,963.39 | H46: 442,164.28 | I46: 708,885.58 | J46: 549,983.99 | K46: 634,599.76 | L46: 523,082.50 | M46: 746,558.84 | N46: 571,074.59

Sheet RESUMENES
B1: Consolidación por años
B2: MOS Expert CPC Martín Cruz • +51 998 401 784 | Excel No Convencional
B5: =lista02.01 -> Año 2017 | C5: MARCA | D5: PATENTE | E5: OTROS | F5: TOTAL | G5: GRAFICA | I5: =lista02.03 -> MARCA | J5: 2017 | K5: 2016 | L5: % Var
B6: Enero | C6: 329,867.50 | D6: 267,632.59 | E6: 2,170.31 | F6: 599,670.40 | G6: ███████████ | J6: Octubre | K6: Octubre
B7: Febrero | C7: 276,850.04 | D7: 304,486.55 | E7: 8,503.55 | F7: 589,840.14 | G7: ███████████ | I7: 01.01. Marca Nacional | J7: 29,358.54 | K7: 9,974.43 | L7: 194.34%
B8: Marzo | C8: 186,846.74 | D8: 354,878.84 | E8: 10,607.35 | F8: 552,332.93 | G8: ███████████ | I8: 01.02. Marca en el Extrajero | J8: 10,025.58
B9: Abril | C9: 242,534.10 | D9: 400,592.36 | E9: 8,399.66 | F9: 651,526.12 | G9: █████████████ | I9: 01.03. Renovaciones | J9: 62,995.41
B10: Mayo | C10: 367,419.19 | D10: 259,408.08 | E10: 5,136.12 | F10: 631,963.39 | G10: ████████████ | I10: 01.04. Busqueda y Vigilancia
B11: Junio | C11: 131,939.80 | D11: 304,765.46 | E11: 5,459.02 | F11: 442,164.28 | G11: ████████ | I11: 01.05. Dominio | J11: 6,093.47 | K11: 41,521.87 | L11: -85.32%
B12: Julio | C12: 324,605.62 | D12: 371,001.54 | E12: 13,278.42 | F12: 708,885.58 | G12: ██████████████ | I12: 01.06. Otros Marca | J12: 58,365.14
B13: Agosto | C13: 209,608.97 | D13: 335,969.79 | E13: 4,405.23 | F13: 549,983.99 | G13: ██████████
B14: Septiembre | C14: 252,068.68 | D14: 375,688.21 | E14: 6,842.87 | F14: 634,599.76 | G14: ████████████
B15: Octubre | C15: 166,838.14 | D15: 351,204.21 | E15: 5,040.15 | F15: 523,082.50 | G15: ██████████ | I15: PATENTE | J15: 2017 | K15: 2016 | L15: % Var
B16: Noviembre | C16: 303,354.97 | D16: 437,615.16 | E16: 5,588.71 | F16: 746,558.84 | G16: ██████████████ | J16: Mayo | K16: Mayo
B17: Diciembre | C17: 269,876.38 | D17: 274,688.85 | E17: 26,509.36 | F17: 571,074.59 | G17: ███████████ | I17: 02.01. Patente Nacional | J17: 18,699.56 | K17: 9,100.25 | L17: 105.48%
I18: 02.02. PCT | K18: 43,955.60
I19: 02.03. Diseño Industrial | J19: 55,549.19 | K19: 25,476.73 | L19: 118.04%
B20: =lista02.02 -> TC | C20: 3.485 | I20: 02.04. Variedad Vegetal | J20: 31,835.69 | K20: 18,926.96 | L20: 68.20%
I21: 02.05. Anualidad | J21: 79,642.51 | K21: 35,088.31 | L21: 126.98%
B22: Año 2016 | C22: MARCA | D22: PATENTE | E22: OTROS | F22: TOTAL | G22: GRAFICA | I22: 02.06. Busqueda y Vigilancia | J22: 43,013.85
B23: Enero | C23: 45,702.81 | D23: 54,382.12 | E23: 4,574.99 | F23: 104,659.93 | G23: ██████ | I23: 02.07. Otros Patentes | J23: 30,667.28 | K23: 25,758.19 | L23: 19.06%
B24: Febrero | C24: 77,896.81 | D24: 38,874.57 | E24: 1,302.90 | F24: 118,074.28 | G24: ███████
B25: Marzo | C25: 24,642.81 | D25: 40,664.09 | E25: 2,352.07 | F25: 67,658.98 | G25: ████
B26: Abril | C26: 75,397.30 | D26: 56,702.66 | E26: 3,076.12 | F26: 135,176.09 | G26: █████████
B27: Mayo | C27: 52,214.68 | D27: 45,424.98 | E27: 5,601.47 | F27: 103,241.12 | G27: ██████
B28: Junio | C28: 80,429.18 | D28: 44,720.10 | E28: 5,224.01 | F28: 130,373.29 | G28: ████████
B29: Julio | C29: 71,891.03 | D29: 54,224.07 | E29: 4,502.93 | F29: 130,618.03 | G29: ████████
B30: Agosto | C30: 57,429.57 | D30: 44,628.46 | E30: 3,753.00 | F30: 105,811.04 | G30: ███████
B31: Septiembre | C31: 64,120.81 | D31: 54,750.26 | E31: 3,584.71 | F31: 122,455.78 | G31: ████████
B32: Octubre | C32: 14,776.56 | D32: 28,782.66 | E32: 4,685.54 | F32: 48,244.75 | G32: ███
B33: Noviembre | C33: 82,050.12 | D33: 65,064.89 | E33: 3,144.42 | F33: 150,259.43 | G33: ██████████
B34: Diciembre | C34: 39,980.19 | D34: 49,371.52 | E34: 5,226.65 | F34: 94,578.36 | G34: ██████

Sheet DO RESUMENES (hidden)
D4: Nombre de rangos
D5: MOS - CPC Martín Cruz - 998401784
D8: =IF(RAND()<0.5,2016,2017) -> Año 2017 | E8: MARCA | F8: PATENTE | G8: OTROS | H8: TOTAL | I8: GRAFICA | K8: MARCA | L8: 2017 | M8: 2016 | N8: % Var
D9: Enero | E9: =SUM(INDIRECT($D$8&"!"&$D9) INDIRECT($D$8&"!"&E$8)) -> 329,867.50 | F9: =SUM(INDIRECT($D$8&"!"&$D9) INDIRECT($D$8&"!"&F$8)) -> 267,632.59 | G9: =SUM(INDIRECT($D$8&"!"&$D9) INDIRECT($D$8&"!"&G$8)) -> 2,170.31 | H9: =SUM(E9:G9) -> 599,670.40 | I9: =REPT("█",H9/50000) -> ███████████ | K9: ="" ->  | L9: =INDEX('2017'!$C$5:$N$5,RANDBETWEEN(1,12)) -> Octubre | M9: =L9 -> Octubre | N9: ="" -> 
D10: Febrero | E10: =SUM(INDIRECT($D$8&"!"&$D10) INDIRECT($D$8&"!"&E$8)) -> 276,850.04 | F10: =SUM(INDIRECT($D$8&"!"&$D10) INDIRECT($D$8&"!"&F$8)) -> 304,486.55 | G10: =SUM(INDIRECT($D$8&"!"&$D10) INDIRECT($D$8&"!"&G$8)) -> 8,503.55 | H10: 589,840.14 | I10: ███████████ | K10: 01.01. Marca Nacional | L10: =INDIRECT(L$8&"!"&L$9) INDIRECT(L$8&"!"&$K$8) -> 29,358.54 | M10: =INDIRECT(M$8&"!"&M$9) INDIRECT(M$8&"!"&$K$8) -> 9,974.43 | N10: =IFERROR(L10/M10-1,"") -> 194.34%
D11: Marzo | E11: =SUM(INDIRECT($D$8&"!"&$D11) INDIRECT($D$8&"!"&E$8)) -> 186,846.74 | F11: =SUM(INDIRECT($D$8&"!"&$D11) INDIRECT($D$8&"!"&F$8)) -> 354,878.84 | G11: =SUM(INDIRECT($D$8&"!"&$D11) INDIRECT($D$8&"!"&G$8)) -> 10,607.35 | H11: 552,332.93 | I11: ███████████ | K11: 01.02. Marca en el Extrajero | L11: 10,025.58
D12: Abril | E12: =SUM(INDIRECT($D$8&"!"&$D12) INDIRECT($D$8&"!"&E$8)) -> 242,534.10 | F12: =SUM(INDIRECT($D$8&"!"&$D12) INDIRECT($D$8&"!"&F$8)) -> 400,592.36 | G12: =SUM(INDIRECT($D$8&"!"&$D12) INDIRECT($D$8&"!"&G$8)) -> 8,399.66 | H12: 651,526.12 | I12: █████████████ | K12: 01.03. Renovaciones | L12: 62,995.41
D13: Mayo | E13: =SUM(INDIRECT($D$8&"!"&$D13) INDIRECT($D$8&"!"&E$8)) -> 367,419.19 | F13: =SUM(INDIRECT($D$8&"!"&$D13) INDIRECT($D$8&"!"&F$8)) -> 259,408.08 | G13: =SUM(INDIRECT($D$8&"!"&$D13) INDIRECT($D$8&"!"&G$8)) -> 5,136.12 | H13: 631,963.39 | I13: ████████████ | K13: 01.04. Busqueda y Vigilancia
D14: Junio | E14: =SUM(INDIRECT($D$8&"!"&$D14) INDIRECT($D$8&"!"&E$8)) -> 131,939.80 | F14: =SUM(INDIRECT($D$8&"!"&$D14) INDIRECT($D$8&"!"&F$8)) -> 304,765.46 | G14: =SUM(INDIRECT($D$8&"!"&$D14) INDIRECT($D$8&"!"&G$8)) -> 5,459.02 | H14: 442,164.28 | I14: ████████ | K14: 01.05. Dominio | L14: 6,093.47 | M14: 41,521.87 | N14: -85.32%
D15: Julio | E15: =SUM(INDIRECT($D$8&"!"&$D15) INDIRECT($D$8&"!"&E$8)) -> 324,605.62 | F15: =SUM(INDIRECT($D$8&"!"&$D15) INDIRECT($D$8&"!"&F$8)) -> 371,001.54 | G15: =SUM(INDIRECT($D$8&"!"&$D15) INDIRECT($D$8&"!"&G$8)) -> 13,278.42 | H15: 708,885.58 | I15: ██████████████ | K15: 01.06. Otros Marca | L15: 58,365.14
D16: Agosto | E16: =SUM(INDIRECT($D$8&"!"&$D16) INDIRECT($D$8&"!"&E$8)) -> 209,608.97 | F16: =SUM(INDIRECT($D$8&"!"&$D16) INDIRECT($D$8&"!"&F$8)) -> 335,969.79 | G16: =SUM(INDIRECT($D$8&"!"&$D16) INDIRECT($D$8&"!"&G$8)) -> 4,405.23 | H16: 549,983.99 | I16: ██████████ | K16: ="" ->  | L16: ="" ->  | M16: ="" ->  | N16: ="" -> 
D17: Septiembre | E17: =SUM(INDIRECT($D$8&"!"&$D17) INDIRECT($D$8&"!"&E$8)) -> 252,068.68 | F17: =SUM(INDIRECT($D$8&"!"&$D17) INDIRECT($D$8&"!"&F$8)) -> 375,688.21 | G17: =SUM(INDIRECT($D$8&"!"&$D17) INDIRECT($D$8&"!"&G$8)) -> 6,842.87 | H17: 634,599.76 | I17: ████████████ | K17: ="" ->  | L17: ="" ->  | M17: ="" ->  | N17: ="" -> 
D18: Octubre | E18: =SUM(INDIRECT($D$8&"!"&$D18) INDIRECT($D$8&"!"&E$8)) -> 166,838.14 | F18: =SUM(INDIRECT($D$8&"!"&$D18) INDIRECT($D$8&"!"&F$8)) -> 351,204.21 | G18: =SUM(INDIRECT($D$8&"!"&$D18) INDIRECT($D$8&"!"&G$8)) -> 5,040.15 | H18: 523,082.50 | I18: ██████████ | K18: PATENTE | L18: 2017 | M18: 2016 | N18: % Var
D19: Noviembre | E19: =SUM(INDIRECT($D$8&"!"&$D19) INDIRECT($D$8&"!"&E$8)) -> 303,354.97 | F19: =SUM(INDIRECT($D$8&"!"&$D19) INDIRECT($D$8&"!"&F$8)) -> 437,615.16 | G19: =SUM(INDIRECT($D$8&"!"&$D19) INDIRECT($D$8&"!"&G$8)) -> 5,588.71 | H19: 746,558.84 | I19: ██████████████ | K19: ="" ->  | L19: =INDEX('2017'!$C$5:$N$5,RANDBETWEEN(1,12)) -> Mayo | M19: =L19 -> Mayo | N19: ="" -> 
D20: Diciembre | E20: =SUM(INDIRECT($D$8&"!"&$D20) INDIRECT($D$8&"!"&E$8)) -> 269,876.38 | F20: =SUM(INDIRECT($D$8&"!"&$D20) INDIRECT($D$8&"!"&F$8)) -> 274,688.85 | G20: =SUM(INDIRECT($D$8&"!"&$D20) INDIRECT($D$8&"!"&G$8)) -> 26,509.36 | H20: 571,074.59 | I20: ███████████ | K20: 02.01. Patente Nacional | L20: =INDIRECT(L$18&"!"&L$19) INDIRECT(L$18&"!"&$K$18) -> 18,699.56 | M20: =INDIRECT(M$18&"!"&M$19) INDIRECT(M$18&"!"&$K$18) -> 9,100.25 | N20: =IFERROR(L20/M20-1,"") -> 105.48%
K21: 02.02. PCT | M21: 43,955.60
K22: 02.03. Diseño Industrial | L22: 55,549.19 | M22: 25,476.73 | N22: 118.04%
D23: TC | E23: =RANDBETWEEN(3300,3500)/1000 -> 3.485 | F23: ="" ->  | G23: ="" ->  | H23: ="" ->  | I23: ="" ->  | K23: 02.04. Variedad Vegetal | L23: 31,835.69 | M23: 18,926.96 | N23: 68.20%
D24: ="" ->  | E24: ="" ->  | F24: ="" ->  | G24: ="" ->  | H24: ="" ->  | I24: ="" ->  | K24: 02.05. Anualidad | L24: 79,642.51 | M24: 35,088.31 | N24: 126.98%
D25: =IF(RAND()<0.5,2016,2017) -> Año 2016 | E25: MARCA | F25: PATENTE | G25: OTROS | H25: TOTAL | I25: GRAFICA | K25: 02.06. Busqueda y Vigilancia | L25: 43,013.85
D26: Enero | E26: =SUM(INDIRECT($D$25&"!"&$D26) INDIRECT($D$25&"!"&E$25))/TCambio -> 45,702.81 | F26: =SUM(INDIRECT($D$25&"!"&$D26) INDIRECT($D$25&"!"&F$25))/TCambio -> 54,382.12 | G26: =SUM(INDIRECT($D$25&"!"&$D26) INDIRECT($D$25&"!"&G$25))/TCambio -> 4,574.99 | H26: =SUM(E26:G26) -> 104,659.93 | I26: =REPT("█",H26/15000) -> ██████ | K26: 02.07. Otros Patentes | L26: 30,667.28 | M26: 25,758.19 | N26: 19.06%
D27: Febrero | E27: =SUM(INDIRECT($D$25&"!"&$D27) INDIRECT($D$25&"!"&E$25))/TCambio -> 77,896.81 | F27: =SUM(INDIRECT($D$25&"!"&$D27) INDIRECT($D$25&"!"&F$25))/TCambio -> 38,874.57 | G27: =SUM(INDIRECT($D$25&"!"&$D27) INDIRECT($D$25&"!"&G$25))/TCambio -> 1,302.90 | H27: 118,074.28 | I27: ███████
D28: Marzo | E28: =SUM(INDIRECT($D$25&"!"&$D28) INDIRECT($D$25&"!"&E$25))/TCambio -> 24,642.81 | F28: =SUM(INDIRECT($D$25&"!"&$D28) INDIRECT($D$25&"!"&F$25))/TCambio -> 40,664.09 | G28: =SUM(INDIRECT($D$25&"!"&$D28) INDIRECT($D$25&"!"&G$25))/TCambio -> 2,352.07 | H28: 67,658.98 | I28: ████
D29: Abril | E29: =SUM(INDIRECT($D$25&"!"&$D29) INDIRECT($D$25&"!"&E$25))/TCambio -> 75,397.30 | F29: =SUM(INDIRECT($D$25&"!"&$D29) INDIRECT($D$25&"!"&F$25))/TCambio -> 56,702.66 | G29: =SUM(INDIRECT($D$25&"!"&$D29) INDIRECT($D$25&"!"&G$25))/TCambio -> 3,076.12 | H29: 135,176.09 | I29: █████████
D30: Mayo | E30: =SUM(INDIRECT($D$25&"!"&$D30) INDIRECT($D$25&"!"&E$25))/TCambio -> 52,214.68 | F30: =SUM(INDIRECT($D$25&"!"&$D30) INDIRECT($D$25&"!"&F$25))/TCambio -> 45,424.98 | G30: =SUM(INDIRECT($D$25&"!"&$D30) INDIRECT($D$25&"!"&G$25))/TCambio -> 5,601.47 | H30: 103,241.12 | I30: ██████
D31: Junio | E31: =SUM(INDIRECT($D$25&"!"&$D31) INDIRECT($D$25&"!"&E$25))/TCambio -> 80,429.18 | F31: =SUM(INDIRECT($D$25&"!"&$D31) INDIRECT($D$25&"!"&F$25))/TCambio -> 44,720.10 | G31: =SUM(INDIRECT($D$25&"!"&$D31) INDIRECT($D$25&"!"&G$25))/TCambio -> 5,224.01 | H31: 130,373.29 | I31: ████████
D32: Julio | E32: =SUM(INDIRECT($D$25&"!"&$D32) INDIRECT($D$25&"!"&E$25))/TCambio -> 71,891.03 | F32: =SUM(INDIRECT($D$25&"!"&$D32) INDIRECT($D$25&"!"&F$25))/TCambio -> 54,224.07 | G32: =SUM(INDIRECT($D$25&"!"&$D32) INDIRECT($D$25&"!"&G$25))/TCambio -> 4,502.93 | H32: 130,618.03 | I32: ████████
D33: Agosto | E33: =SUM(INDIRECT($D$25&"!"&$D33) INDIRECT($D$25&"!"&E$25))/TCambio -> 57,429.57 | F33: =SUM(INDIRECT($D$25&"!"&$D33) INDIRECT($D$25&"!"&F$25))/TCambio -> 44,628.46 | G33: =SUM(INDIRECT($D$25&"!"&$D33) INDIRECT($D$25&"!"&G$25))/TCambio -> 3,753.00 | H33: 105,811.04 | I33: ███████
D34: Septiembre | E34: =SUM(INDIRECT($D$25&"!"&$D34) INDIRECT($D$25&"!"&E$25))/TCambio -> 64,120.81 | F34: =SUM(INDIRECT($D$25&"!"&$D34) INDIRECT($D$25&"!"&F$25))/TCambio -> 54,750.26 | G34: =SUM(INDIRECT($D$25&"!"&$D34) INDIRECT($D$25&"!"&G$25))/TCambio -> 3,584.71 | H34: 122,455.78 | I34: ████████
D35: Octubre | E35: =SUM(INDIRECT($D$25&"!"&$D35) INDIRECT($D$25&"!"&E$25))/TCambio -> 14,776.56 | F35: =SUM(INDIRECT($D$25&"!"&$D35) INDIRECT($D$25&"!"&F$25))/TCambio -> 28,782.66 | G35: =SUM(INDIRECT($D$25&"!"&$D35) INDIRECT($D$25&"!"&G$25))/TCambio -> 4,685.54 | H35: 48,244.75 | I35: ███
D36: Noviembre | E36: =SUM(INDIRECT($D$25&"!"&$D36) INDIRECT($D$25&"!"&E$25))/TCambio -> 82,050.12 | F36: =SUM(INDIRECT($D$25&"!"&$D36) INDIRECT($D$25&"!"&F$25))/TCambio -> 65,064.89 | G36: =SUM(INDIRECT($D$25&"!"&$D36) INDIRECT($D$25&"!"&G$25))/TCambio -> 3,144.42 | H36: 150,259.43 | I36: ██████████
D37: Diciembre | E37: =SUM(INDIRECT($D$25&"!"&$D37) INDIRECT($D$25&"!"&E$25))/TCambio -> 39,980.19 | F37: =SUM(INDIRECT($D$25&"!"&$D37) INDIRECT($D$25&"!"&F$25))/TCambio -> 49,371.52 | G37: =SUM(INDIRECT($D$25&"!"&$D37) INDIRECT($D$25&"!"&G$25))/TCambio -> 5,226.65 | H37: 94,578.36 | I37: ██████
